fUST/lending_fUST_20240715
["ID","MTS","AMOUNT","RATE_DAILY","PERIOD"]
[332148499,1720990262666,-525.1882904,0.00025753,2]
[332148500,1720990262677,-240.14743941,0.00025753,2]
[332148501,1720990262691,-500.0,0.00025753,2]
[332148502,1720990262704,-500.0,0.00025753,2]
[332148503,1720990262715,-500.0,0.00025753,2]
[332148504,1720990262726,-500.0,0.00025753,2]
[332148505,1720990262735,-500.0,0.00025753,2]
[332148506,1720990262746,-500.0,0.00025753,2]
[332148507,1720990262755,-298.60681129,0.00025753,2]
[332148508,1720990262765,-902.55200027,0.0002577,2]
[332148509,1720990262777,-2500.0,0.000258,2]
[332148510,1720990262786,-222.4,0.00025841,2]
[332148511,1720990262795,-367.400025,0.00025875,2]
[332148512,1720990262805,-367.400025,0.00025896,2]
[332148513,1720990262814,-150.112233,0.000259,7]
[332148514,1720990262823,-247.57733122,0.00025902,2]
[332148515,1720990262837,-155.02881855,0.00025902,2]
[332148516,1720990262859,-902.55200027,0.00025996,2]
[332148517,1720990262875,-3019.77192102,0.00026,2]
[332148518,1720990262893,-2500.0,0.00026,2]
[332148519,1720990262914,-1000.0,0.00026,26]
[332148520,1720990262934,-202.13001539,0.00026,2]
[332148521,1720990262951,-373.92448428,0.00026026,2]
[332148522,1720990262966,-500.0,0.00026026,2]
[332148523,1720990262985,-500.0,0.00026027,2]
[332148524,1720990263005,-500.0,0.00026027,2]
[332148525,1720990263019,-151.0,0.00026027,7]
[332148526,1720990263036,-574.24,0.00026027,4]
[332148527,1720990263052,-500.0,0.00026027,2]
[332148528,1720990263068,-500.0,0.00026027,2]
[332148529,1720990263084,-525.25,0.00026027,2]
[332148530,1720990263098,-500.0,0.00026027,2]
[332148531,1720990263116,-500.0,0.00026027,2]
[332148532,1720990263131,-262.104553,0.00026027,7]
[332148533,1720990263148,-262.104553,0.00026027,7]
[332148534,1720990263164,-343.99824475,0.00026027,2]
[332148535,1720990263179,-599.68,0.00026027,2]
[332148536,1720990263195,-549.6099868,0.00026027,2]
[332148537,1720990263210,-486.652235,0.00026027,7]
[332148538,1720990263224,-486.652235,0.00026027,7]
[332148539,1720990263239,-500.0,0.00026027,2]
[332148540,1720990263254,-500.0,0.00026027,2]
[332148541,1720990263269,-500.0,0.00026027,2]
[332148542,1720990263283,-640.65,0.00026027,2]
[332148543,1720990263298,-500.0,0.00026027,2]
[332148544,1720990263313,-500.0,0.00026027,2]
[332148545,1720990263327,-151.0,0.00026027,7]
[332148546,1720990263343,-500.0,0.00026027,2]
[332148547,1720990263358,-500.0,0.00026027,2]
[332148548,1720990263372,-500.0,0.00026027,2]
[332148549,1720990263387,-151.0,0.00026027,7]
[332148550,1720990263404,-516.62501992,0.00026027,2]
[332148551,1720990263419,-151.0,0.00026027,7]
[332148552,1720990263433,-500.0,0.00026027,2]
[332148553,1720990263448,-406.03745896,0.00026027,2]
[332148554,1720990263464,-500.0,0.00026027,2]
[332148555,1720990263480,-500.0,0.00026027,2]
[332148556,1720990263495,-500.0,0.00026027,2]
[332148557,1720990263510,-500.0,0.00026027,2]
[332148558,1720990263598,-1500.0,0.00026027,2]
[332148559,1720990263609,-706.67,0.00026027,2]
[332148560,1720990263618,-500.0,0.00026027,2]
[332148561,1720990263628,-505.37007845,0.00026027,2]
[332148562,1720990263637,-500.0,0.00026027,2]
[332148563,1720990263647,-500.0,0.00026027,2]
[332148564,1720990263656,-986.84,0.00026027,2]
[332148565,1720990263666,-500.0,0.00026027,2]
[332148566,1720990263676,-500.0,0.00026027,2]
[332148567,1720990263686,-4248.18,0.00026027,2]
[332148568,1720990263696,-500.0,0.00026027,2]
[332148569,1720990263707,-202.606488,0.00026027,7]
[332148570,1720990263717,-500.0,0.00026027,2]
[332148571,1720990263727,-202.606488,0.00026027,7]
[332148572,1720990263737,-958.9,0.00026027,2]
[332148573,1720990263747,-221.08492536,0.00026027,2]
[332148574,1720990263758,-500.0,0.00026027,2]
[332148575,1720990263768,-500.0,0.00026027,2]
[332148576,1720990263778,-500.0,0.00026027,2]
[332148577,1720990263787,-500.0,0.00026027,2]
[332148578,1720990263797,-500.0,0.00026027,2]
[332148579,1720990263807,-439.581992,0.00026027,7]
[332148580,1720990263817,-516.71669963,0.00026027,2]
[332148581,1720990263827,-439.581992,0.00026027,7]
[332148582,1720990263837,-151.0,0.00026027,7]
[332148583,1720990263850,-249.148602,0.00026027,7]
[332148584,1720990263860,-968.12,0.00026027,2]
[332148585,1720990263870,-500.0,0.00026027,2]
[332148586,1720990263880,-151.0,0.00026027,7]
[332148587,1720990263891,-500.0,0.00026027,2]
[332148588,1720990263900,-500.0,0.00026027,2]
[332148589,1720990263910,-200.0,0.00026027,2]
[332148590,1720990263921,-505.87,0.00026027,2]
[332148591,1720990263931,-500.0,0.00026027,2]
[332148592,1720990263941,-500.0,0.00026027,2]
[332148593,1720990263951,-500.0,0.00026027,2]
[332148594,1720990263960,-500.0,0.00026027,2]
[332148595,1720990263970,-500.0,0.00026027,2]
[332148596,1720990263980,-500.0,0.00026027,2]
[332148597,1720990263990,-500.0,0.00026027,2]
[332148598,1720990264000,-347.38610632,0.00026027,2]
[332148599,1720990264010,-505.31147761,0.00026027,2]
[332148600,1720990264020,-500.0,0.00026027,2]
[332148601,1720990264030,-500.0,0.00026027,2]
[332148602,1720990264039,-500.0,0.00026027,2]
[332148603,1720990264048,-500.0,0.00026027,2]
[332148604,1720990264058,-500.0,0.00026027,2]
[332148605,1720990264067,-509.00051779,0.00026027,2]
[332148606,1720990264077,-500.0,0.00026027,2]
[332148607,1720990264087,-602.77,0.00026027,2]
[332148608,1720990264096,-500.0,0.00026027,2]
[332148609,1720990264106,-500.0,0.00026027,2]
[332148610,1720990264115,-222.5716922,0.00026027,2]
[332148611,1720990264124,-500.0,0.00026027,2]
[332148612,1720990264134,-559.37,0.00026027,2]
[332148613,1720990264143,-10178.31,0.00026027,2]
[332148614,1720990264152,-500.0,0.00026027,2]
[332148615,1720990264162,-500.0,0.00026027,2]
[332148616,1720990264171,-500.0,0.00026027,2]
[332148617,1720990264181,-500.0,0.00026027,2]
[332148618,1720990264191,-1800.07,0.00026027,2]
[332148619,1720990264201,-500.0,0.00026027,2]
[332148620,1720990264210,-500.0,0.00026027,2]
[332148621,1720990264220,-500.0,0.00026027,2]
[332148622,1720990264229,-500.0,0.00026027,2]
[332148623,1720990264239,-500.0,0.00026027,2]
[332148624,1720990264248,-500.0,0.00026027,2]
[332148625,1720990264257,-200.0,0.00026177,2]
[332148626,1720990264267,-201.19500157,0.00026177,2]
[332148627,1720990264277,-150.112233,0.000262,7]
[332148628,1720990264287,-158.28553448,0.0002621,2]
[332148629,1720990264297,-150.60841811,0.0002627,7]
[332148630,1720990264306,-902.55200027,0.00026272,2]
[332148631,1720990264315,-902.55200027,0.00026295,2]
[332148632,1720990264325,-894.05585834,0.00026301,2]
[332148633,1720990264334,-500.0,0.00026301,2]
[332148634,1720990264343,-500.0,0.00026301,2]
[332148635,1720990264353,-574.24,0.00026301,4]
[332148636,1720990264363,-500.0,0.00026301,2]
[332148637,1720990264372,-500.0,0.00026301,2]
[332148638,1720990264381,-525.25,0.00026301,2]
[332148639,1720990264391,-500.0,0.00026301,2]
[332148640,1720990264401,-418.61,0.00026301,2]
[332148641,1720990264411,-385.96635781,0.00026301,2]
[332148642,1720990264420,-500.0,0.00026301,2]
[332148643,1720990264429,-553.31966395,0.00026301,2]
[332148644,1720990264439,-436.48,0.00026301,2]
[332148645,1720990264448,-500.0,0.00026301,2]
[332148646,1720990264458,-500.0,0.00026301,2]
[332148647,1720990264468,-500.0,0.00026301,2]
[332148648,1720990264478,-706.67,0.00026301,2]
[332148649,1720990264487,-500.0,0.00026301,2]
[332148650,1720990264496,-500.0,0.00026301,2]
[332148651,1720990264506,-500.0,0.00026301,2]
[332148652,1720990264515,-986.84,0.00026301,2]
[332148653,1720990264524,-500.0,0.00026301,2]
[332148654,1720990264534,-500.0,0.00026301,2]
[332148655,1720990264544,-4248.18,0.00026301,2]
[332148656,1720990264554,-958.9,0.00026301,2]
[332148657,1720990264563,-500.0,0.00026301,2]
[332148658,1720990264572,-500.0,0.00026301,2]
[332148659,1720990264582,-500.0,0.00026301,2]
[332148660,1720990264591,-469.31059932,0.00026301,2]
[332148661,1720990264601,-500.0,0.00026301,2]
[332148662,1720990264611,-968.12,0.00026301,2]
[332148663,1720990264620,-500.0,0.00026301,2]
[332148664,1720990264630,-200.0,0.00026301,2]
[332148665,1720990264640,-500.0,0.00026301,2]
[332148666,1720990264649,-500.0,0.00026301,2]
[332148667,1720990264659,-500.0,0.00026301,2]
[332148668,1720990264669,-500.0,0.00026301,2]
[332148669,1720990264679,-500.0,0.00026301,2]
[332148670,1720990264689,-500.0,0.00026301,2]
[332148671,1720990264698,-602.77,0.00026301,2]
[332148672,1720990264708,-500.0,0.00026301,2]
[332148673,1720990264719,-500.0,0.00026301,2]
[332148674,1720990264728,-10178.31,0.00026301,2]
[332148675,1720990264739,-500.0,0.00026301,2]
[332148676,1720990264749,-500.0,0.00026301,2]
[332148677,1720990264759,-1800.07,0.00026301,2]
[332148678,1720990264768,-500.0,0.00026301,2]
[332148679,1720990264778,-500.0,0.00026301,2]
[332148680,1720990264787,-500.0,0.00026301,2]
[332148681,1720990264798,-153.0,0.00026329,2]
[332148682,1720990264807,-153.0,0.00026329,2]
[332148683,1720990264817,-153.0,0.00026329,2]
[332148684,1720990264826,-222.4,0.00026349,2]
[332148685,1720990264836,-902.55200027,0.00026373,2]
[332148686,1720990264849,-367.400025,0.00026423,2]
[332148687,1720990264859,-367.400025,0.00026489,2]
[332148688,1720990264869,-3000.0,0.000265,2]
[332148689,1720990264878,-151.0,0.0002651,7]
[332148690,1720990264887,-3000.0,0.0002651,2]
[332148691,1720990264899,-3000.0,0.0002652,2]
[332148692,1720990264908,-902.55200027,0.00026524,2]
[332148693,1720990264917,-1704.58454499,0.0002653,2]
[332148694,1720990265204,-510.94687324,0.00025149,2]
[332148695,1720990265333,-151.0,0.00024657,7]
[332148696,1720990265343,-583.33,0.0002493,2]
[332148697,1720990265353,-116.190947,0.0002493,2]
[332148698,1720990265368,-467.139053,0.0002493,2]
[332148699,1720990265378,-583.33,0.0002493,2]
[332148700,1720990265388,-583.41,0.0002493,2]
[332148701,1720990265398,-151.0,0.00024931,7]
[332148702,1720990265409,-1000.0,0.00024941,2]
[332148703,1720990265420,-1000.0,0.00024965,2]
[332148704,1720990265431,-489.05312676,0.00025149,2]
[332148705,1720990265441,-500.0,0.00025479,2]
[332148706,1720990265452,-500.0,0.00025753,2]
[332148707,1720990265462,-500.0,0.00026027,2]
[332148708,1720990265472,-1295.41545501,0.0002653,2]
[332148709,1720990265482,-367.400025,0.00026534,2]
[332148710,1720990265494,-3000.0,0.0002654,2]
[332148711,1720990265582,-3000.0,0.0002655,2]
[332148712,1720990265593,-3000.0,0.0002656,2]
[332148713,1720990265603,-3000.0,0.0002657,2]
[332148714,1720990265612,-156.3226906,0.00026574,2]
[332148715,1720990265621,-500.0,0.00026575,2]
[332148716,1720990265630,-500.0,0.00026575,2]
[332148717,1720990265639,-574.24,0.00026575,4]
[332148718,1720990265649,-500.0,0.00026575,2]
[332148719,1720990265658,-500.0,0.00026575,2]
[332148720,1720990265667,-525.25,0.00026575,2]
[332148721,1720990265676,-500.0,0.00026575,2]
[332148722,1720990265686,-500.0,0.00026575,2]
[332148723,1720990265696,-500.0,0.00026575,2]
[332148724,1720990265706,-500.0,0.00026575,2]
[332148725,1720990265716,-706.67,0.00026575,2]
[332148726,1720990265726,-500.0,0.00026575,2]
[332148727,1720990265737,-500.0,0.00026575,2]
[332148728,1720990265747,-500.0,0.00026575,2]
[332148729,1720990265756,-986.84,0.00026575,2]
[332148730,1720990265767,-260.21110003,0.00026575,2]
[332148731,1720990265777,-500.0,0.00026575,2]
[332148732,1720990265788,-4248.18,0.00026575,2]
[332148733,1720990265799,-202.606488,0.00026575,7]
[332148734,1720990265810,-202.606495,0.00026575,7]
[332148735,1720990265820,-958.9,0.00026575,2]
[332148736,1720990265829,-500.0,0.00026575,2]
[332148737,1720990265839,-217.91782147,0.00026575,2]
[332148738,1720990265851,-500.0,0.00026575,2]
[332148739,1720990265861,-439.581992,0.00026575,7]
[332148740,1720990265870,-439.582001,0.00026575,7]
[332148741,1720990265880,-968.12,0.00026575,2]
[332148742,1720990265890,-151.0,0.00026575,7]
[332148743,1720990265900,-500.0,0.00026575,2]
[332148744,1720990265912,-200.0,0.00026575,2]
[332148745,1720990265925,-500.0,0.00026575,2]
[332148746,1720990265936,-500.0,0.00026575,2]
[332148747,1720990265947,-500.0,0.00026575,2]
[332148748,1720990265959,-190.46,0.00026575,2]
[332148749,1720990265969,-602.77,0.00026575,2]
[332148750,1720990265978,-10178.31,0.00026575,2]
[332148751,1720990265988,-500.0,0.00026575,2]
[332148752,1720990265998,-1800.07,0.00026575,2]
[332148753,1720990266008,-500.0,0.00026575,2]
[332148754,1720990266018,-500.0,0.00026575,2]
[332148755,1720990266027,-156.270943,0.00026577,2]
[332148756,1720990266036,-157.80959748,0.00026578,2]
[332148757,1720990266047,-3000.0,0.0002658,2]
[332148758,1720990266056,-223.71703034,0.0002658,2]
[332148759,1720990266066,-3000.0,0.0002659,2]
[332148760,1720990266075,-151.0,0.0002659,7]
[332148761,1720990266084,-151.0,0.0002659,7]
[332148762,1720990266093,-3000.0,0.000266,2]
[332148763,1720990266102,-5070.07206103,0.0002661,30]
[332148764,1720990266111,-4687.638011,0.0002661,2]
[332148765,1720990266121,-151.0,0.0002661,7]
[332148766,1720990266130,-164.4162941,0.00026639,2]
[332148767,1720990266140,-1152.0,0.00026695,2]
[332148768,1720990266149,-160.22197401,0.00026721,2]
[332148769,1720990266159,-902.55200027,0.00026749,2]
[332148770,1720990266171,-486.652235,0.0002679,7]
[332148771,1720990266182,-486.652235,0.0002679,7]
[332148772,1720990266191,-307.8411635,0.00026795,2]
[332148773,1720990266202,-52549.3967625,0.000268,2]
[332148774,1720990266215,-151.0,0.000268,7]
[332148775,1720990266227,-262.104553,0.000268,7]
[332148776,1720990266239,-262.104553,0.000268,7]
[332148777,1720990266249,-151.0,0.000268,7]
[332148778,1720990266260,-150.60841811,0.00026807,4]
[332148779,1720990266270,-260.62534725,0.00026848,2]
[332148780,1720990266282,-500.0,0.00026849,2]
[332148781,1720990266293,-500.0,0.00026849,2]
[332148782,1720990266303,-574.24,0.00026849,4]
[332148783,1720990266315,-500.0,0.00026849,2]
[332148784,1720990266325,-500.0,0.00026849,2]
[332148785,1720990266334,-525.25,0.00026849,2]
[332148786,1720990266345,-264.6499117,0.00026849,2]
[332148787,1720990266355,-500.0,0.00026849,2]
[332148788,1720990266364,-500.0,0.00026849,2]
[332148789,1720990266374,-706.67,0.00026849,2]
[332148790,1720990266383,-500.0,0.00026849,2]
[332148791,1720990266392,-500.0,0.00026849,2]
[332148792,1720990266401,-986.84,0.00026849,2]
[332148793,1720990266411,-4248.18,0.00026849,2]
[332148794,1720990266420,-958.9,0.00026849,2]
[332148795,1720990266429,-500.0,0.00026849,2]
[332148796,1720990266438,-500.0,0.00026849,2]
[332148797,1720990266448,-968.12,0.00026849,2]
[332148798,1720990266459,-500.0,0.00026849,2]
[332148799,1720990266468,-245.92697565,0.00026849,2]
[332148800,1720990266477,-500.0,0.00026849,2]
[332148801,1720990266490,-500.0,0.00026849,2]
[332148802,1720990266500,-602.77,0.00026849,2]
[332148803,1720990266511,-10178.31,0.00026849,2]
[332148804,1720990266523,-500.0,0.00026849,2]
[332148805,1720990266534,-1800.07,0.00026849,2]
[332148806,1720990266544,-500.0,0.00026849,2]
[332148807,1720990266553,-500.0,0.00026849,2]
[332148808,1720990266563,-151.0,0.00026849,7]
[332148809,1720990266572,-151.0,0.00026849,7]
[332148810,1720990266581,-200.804126,0.00026849,7]
[332148811,1720990266590,-222.4,0.00026856,2]
[332148812,1720990266600,-959.58137897,0.0002687,2]
[332148813,1720990266610,-902.55200027,0.00026891,2]
[332148814,1720990266620,-367.400025,0.00026892,2]
[332148815,1720990266629,-1669.04185097,0.00027,4]
[332148816,1720990266640,-1057.70984187,0.00027,15]
[332148817,1720990266651,-6916.459417,0.00027,2]
[332148818,1720990266661,-1500.0,0.00027,2]
[332148819,1720990266671,-1500.0,0.00027,2]
[332148820,1720990266680,-1500.0,0.00027,2]
[332148821,1720990266689,-1396.49,0.00027,2]
[332148822,1720990266698,-1000.0,0.00027,27]
[332148823,1720990266708,-151.0,0.00027,7]
[332148824,1720990266718,-151.0,0.00027,7]
[332148825,1720990266728,-367.400025,0.0002705,2]
[332148826,1720990266737,-902.55200027,0.00027065,2]
[332148827,1720990266747,-500.0,0.00027123,2]
[332148828,1720990266756,-500.0,0.00027123,2]
[332148829,1720990266766,-574.24,0.00027123,4]
[332148830,1720990266777,-500.0,0.00027123,2]
[332148831,1720990266787,-500.0,0.00027123,2]
[332148832,1720990266796,-525.25,0.00027123,2]
[332148833,1720990266805,-486.652235,0.00027123,7]
[332148834,1720990266815,-486.652235,0.00027123,7]
[332148835,1720990266826,-151.0,0.00027123,7]
[332148836,1720990266836,-500.0,0.00027123,2]
[332148837,1720990266848,-500.0,0.00027123,2]
[332148838,1720990266860,-706.67,0.00027123,2]
[332148839,1720990266869,-349.85423518,0.00027123,2]
[332148840,1720990266879,-425.67,0.00027123,2]
[332148841,1720990266889,-986.84,0.00027123,2]
[332148842,1720990266899,-4248.18,0.00027123,2]
[332148843,1720990266909,-958.9,0.00027123,2]
[332148844,1720990266919,-500.0,0.00027123,2]
[332148845,1720990266929,-150.96,0.00027123,2]
[332148846,1720990266938,-968.12,0.00027123,2]
[332148847,1720990266947,-500.0,0.00027123,2]
[332148848,1720990266957,-500.0,0.00027123,2]
[332148849,1720990266967,-500.0,0.00027123,2]
[332148850,1720990266976,-602.77,0.00027123,2]
[332148851,1720990266986,-10178.31,0.00027123,2]
[332148852,1720990266995,-500.0,0.00027123,2]
[332148853,1720990267004,-1800.07,0.00027123,2]
[332148854,1720990267016,-297.2944,0.00027123,2]
[332148855,1720990267025,-500.0,0.00027123,2]
[332148856,1720990267035,-169.087781,0.00027123,2]
[332148857,1720990267044,-169.087781,0.00027123,120]
[332148858,1720990267054,-902.55200027,0.00027129,2]
[332148859,1720990267063,-367.400025,0.00027157,2]
[332148860,1720990267073,-196.03927829,0.00027194,2]
[332148861,1720990267082,-2895.52266671,0.00027194,4]
[332148862,1720990267091,-681.075074,0.00027195,2]
[332148863,1720990267100,-902.55200027,0.00027258,2]
[332148864,1720990267109,-300.0,0.00027319,2]
[332148865,1720990267119,-3200.0,0.00027319,2]
[332148866,1720990267128,-150.60841811,0.00027354,2]
[332148867,1720990267137,-222.4,0.00027364,2]
[332148868,1720990267146,-500.0,0.00027397,2]
[332148869,1720990267156,-500.0,0.00027397,2]
[332148870,1720990267166,-574.24,0.00027397,4]
[332148871,1720990267175,-500.0,0.00027397,2]
[332148872,1720990267184,-500.0,0.00027397,2]
[332148873,1720990267194,-525.25,0.00027397,2]
[332148874,1720990267204,-262.104553,0.00027397,7]
[332148875,1720990267213,-262.104553,0.00027397,7]
[332148876,1720990267223,-151.0,0.00027397,7]
[332148877,1720990267234,-500.0,0.00027397,2]
[332148878,1720990267244,-500.0,0.00027397,2]
[332148879,1720990267254,-706.67,0.00027397,2]
[332148880,1720990267263,-986.84,0.00027397,2]
[332148881,1720990267273,-4248.18,0.00027397,2]
[332148882,1720990267283,-958.9,0.00027397,2]
[332148883,1720990267292,-500.0,0.00027397,2]
[332148884,1720990267302,-968.12,0.00027397,2]
[332148885,1720990267312,-500.0,0.00027397,2]
[332148886,1720990267321,-500.0,0.00027397,2]
[332148887,1720990267331,-500.0,0.00027397,2]
[332148888,1720990267341,-500.0,0.00027397,2]
[332148889,1720990267351,-500.0,0.00027397,2]
[332148890,1720990267361,-500.0,0.00027397,2]
[332148891,1720990267370,-500.0,0.00027397,2]
[332148892,1720990267380,-500.0,0.00027397,2]
[332148893,1720990267390,-500.0,0.00027397,2]
[332148894,1720990267399,-500.0,0.00027397,2]
[332148895,1720990267409,-500.0,0.00027397,2]
[332148896,1720990267418,-500.0,0.00027397,2]
[332148897,1720990267427,-500.0,0.00027397,2]
[332148898,1720990267437,-357.70365407,0.00027397,2]
[332148899,1720990267446,-602.77,0.00027397,2]
[332148900,1720990267457,-10178.31,0.00027397,2]
[332148901,1720990267467,-500.0,0.00027397,2]
[332148902,1720990267476,-1800.07,0.00027397,2]
[332148903,1720990267486,-500.0,0.00027397,2]
[332148904,1720990267495,-500.0,0.00027397,2]
[332148905,1720990267505,-500.0,0.00027397,2]
[332148906,1720990267515,-500.0,0.00027397,2]
[332148907,1720990267524,-500.0,0.00027397,2]
[332148908,1720990267534,-500.0,0.00027397,2]
[332148909,1720990267543,-500.0,0.00027397,2]
[332148910,1720990267553,-500.0,0.00027397,2]
[332148911,1720990267563,-500.0,0.00027397,2]
[332148912,1720990267573,-500.0,0.00027397,2]
[332148913,1720990267584,-500.0,0.00027397,2]
[332148914,1720990267594,-500.0,0.00027397,2]
[332148915,1720990267604,-500.0,0.00027397,2]
[332148916,1720990267614,-500.0,0.00027397,2]
[332148917,1720990267624,-500.0,0.00027397,2]
[332148918,1720990267634,-500.0,0.00027397,2]
[332148919,1720990267644,-500.0,0.00027397,2]
[332148920,1720990267654,-500.0,0.00027397,2]
[332148921,1720990267663,-300.29554365,0.00027397,2]
[332148922,1720990267673,-500.0,0.00027397,2]
[332148923,1720990267683,-500.0,0.00027397,2]
[332148924,1720990267692,-500.0,0.00027397,2]
[332148925,1720990267702,-500.0,0.00027397,2]
[332148926,1720990267712,-500.0,0.00027397,2]
[332148927,1720990267722,-500.0,0.00027397,2]
[332148928,1720990267732,-500.0,0.00027397,2]
[332148929,1720990267742,-500.0,0.00027397,2]
[332148930,1720990267752,-500.0,0.00027397,2]
[332148931,1720990267763,-1011.94775,0.00027397,2]
[332148932,1720990267772,-1011.94775,0.00027397,2]
[332148933,1720990267782,-1011.94775,0.00027397,2]
[332148934,1720990267791,-1011.94775,0.00027397,2]
[332148935,1720990267801,-1011.94775,0.00027397,2]
[332148936,1720990267811,-1011.94775,0.00027397,2]
[332148937,1720990267821,-1011.94775,0.00027397,2]
[332148938,1720990267831,-1011.94775,0.00027397,2]
[332148939,1720990267841,-1011.94775,0.00027397,2]
[332148940,1720990267855,-1011.94775,0.00027397,2]
[332148941,1720990267865,-1011.94775,0.00027397,2]
[332148942,1720990267874,-1011.94775,0.00027397,2]
[332148943,1720990267884,-1011.94775,0.00027397,2]
[332148944,1720990267981,-1011.94775,0.00027397,2]
[332148945,1720990267991,-1011.94775,0.00027397,2]
[332148946,1720990268002,-1011.94775,0.00027397,2]
[332148947,1720990268011,-1011.94775,0.00027397,2]
[332148948,1720990268022,-1011.94775,0.00027397,2]
[332148949,1720990268033,-1011.94775,0.00027397,2]
[332148950,1720990268043,-1011.947755,0.00027397,2]
[332148951,1720990268052,-6250.0,0.00027397,120]
[332148952,1720990268062,-1436.35994433,0.00027399,2]
[332148953,1720990268071,-175.5061073,0.000274,2]
[332148954,1720990268081,-367.400025,0.00027456,2]
[332148955,1720990268090,-151.0,0.0002749,7]
[332148956,1720990268100,-43698.03022018,0.000275,2]
[332148957,1720990268109,-1000.0,0.000275,2]
[332148958,1720990268118,-486.652235,0.000275,7]
[332148959,1720990268128,-486.652235,0.000275,7]
[332148960,1720990268137,-400.0,0.00027547,2]
[332148961,1720990268147,-150.65189833,0.00027577,2]
[332148962,1720990268157,-1990.00417382,0.00027614,2]
[332148963,1720990268167,-500.0,0.00027671,2]
[332148964,1720990268176,-500.0,0.00027671,2]
[332148965,1720990268186,-574.24,0.00027671,4]
[332148966,1720990268195,-500.0,0.00027671,2]
[332148967,1720990268205,-500.0,0.00027671,2]
[332148968,1720990268214,-525.25,0.00027671,2]
[332148969,1720990268224,-500.0,0.00027671,2]
[332148970,1720990268233,-500.0,0.00027671,2]
[332148971,1720990268243,-706.67,0.00027671,2]
[332148972,1720990268253,-986.84,0.00027671,2]
[332148973,1720990268263,-4248.18,0.00027671,2]
[332148974,1720990268273,-958.9,0.00027671,2]
[332148975,1720990268283,-500.0,0.00027671,2]
[332148976,1720990268292,-968.12,0.00027671,2]
[332148977,1720990268302,-482.96,0.00027671,2]
[332148978,1720990268311,-527.73,0.00027671,2]
[332148979,1720990268321,-500.0,0.00027671,2]
[332148980,1720990268330,-602.77,0.00027671,2]
[332148981,1720990268339,-10178.31,0.00027671,2]
[332148982,1720990268349,-500.0,0.00027671,2]
[332148983,1720990268358,-1800.07,0.00027671,2]
[332148984,1720990268369,-500.0,0.00027671,2]
[332148985,1720990268380,-222.4,0.00027872,2]
[332148986,1720990268390,-223.71703034,0.00027912,2]
[332148987,1720990268400,-902.55200027,0.00027933,2]
[332148988,1720990268411,-500.0,0.00027945,2]
[332148989,1720990268421,-500.0,0.00027945,2]
[332148990,1720990268430,-574.24,0.00027945,4]
[332148991,1720990268441,-500.0,0.00027945,2]
[332148992,1720990268451,-500.0,0.00027945,2]
[332148993,1720990268462,-525.25,0.00027945,2]
[332148994,1720990268473,-262.104553,0.00027945,7]
[332148995,1720990268485,-262.104553,0.00027945,7]
[332148996,1720990268496,-500.0,0.00027945,2]
[332148997,1720990268505,-500.0,0.00027945,2]
[332148998,1720990268515,-706.67,0.00027945,2]